bitfinex/quotes_ETHUSD_20241001
["timestamp","ask_amount","ask_price","bid_price","bid_amount"]
[1727792122579,1.0889,2584.0,2583.6,3.87056]
[1727792122732,1.0889,2584.0,2583.5,3.87063]
[1727792123042,1.0889,2584.0,2583.6,3.87047]
[1727792123248,1.0889,2584.0,2583.5,3.87063]
[1727792123471,1.0889,2584.0,2583.5,3.87061]
[1727792123769,1.0889,2584.0,2583.5,7.74123]
[1727792123930,1.0889,2584.0,2583.5,3.87061]
[1727792124132,1.0889,2584.0,2583.1,1.0381]
[1727792124133,1.0889,2584.0,2583.4,4.4208]
[1727792124366,1.0889,2584.0,2583.6,3.87046]
[1727792124764,1.584767,2584.0,2583.5,3.87068]
[1727792124968,1.584767,2584.0,2583.3,3.8709]
[1727792125132,1.584767,2584.0,2583.5,3.87061]
[1727792125336,1.0889,2584.0,2582.9,0.55]
[1727792125652,1.0889,2584.0,2583.8,3.87023]
[1727792125873,3.8693,2584.5,2583.8,3.87023]
[1727792125874,1.1269,2584.4,2583.8,3.87023]
[1727792126035,1.1269,2584.4,2583.8,3.87017]
[1727792126359,3.86955,2584.3,2583.8,3.87017]
[1727792126559,4.756141,2584.3,2583.8,3.87017]
[1727792126745,3.86881,2584.8,2584.0,3.86989]
[1727792126746,3.86886,2584.8,2584.0,3.86989]
[1727792126952,2.3611812,2585.4,2584.4,3.86935]
[1727792126953,1.0396,2584.7,2584.4,3.86935]
[1727792127260,1.0396,2584.7,2584.2,3.86955]
[1727792127879,1.0396,2584.7,2584.3,3.86941]
[1727792128391,1.0396,2584.7,2584.0,1.112]
[1727792128392,1.0396,2584.7,2584.0,4.98191]
[1727792128558,1.0396,2584.7,2583.5,3.0]
[1727792128559,1.530445,2584.7,2583.8,3.8702]
[1727792128765,1.1374,2584.1,2583.5,3.87066]
[1727792129066,1.1374,2584.1,2583.6,3.87046]
[1727792129251,3.87015,2583.9,2583.2,3.87113]
[1727792129459,3.8708,2583.5,2582.6,1.1079]
[1727792129638,3.8708,2583.5,2582.8,3.87166]
[1727792129841,8.36600478,2583.5,2582.9,3.87152]
[1727792130171,1.0709,2583.6,2583.0,3.87145]
[1727792130492,1.0709,2583.6,2583.5,3.87071]
[1727792130786,1.1145,2584.0,2583.5,3.87071]
[1727792130946,1.1145,2584.0,2583.6,3.87055]
[1727792131148,4.98457,2584.0,2583.5,3.87071]
[1727792131369,1.1145,2584.0,2583.7,3.8704]
[1727792131602,1.1145,2584.0,2583.7,3.87032]
[1727792132981,1.1145,2584.0,2583.6,0.0489683]
[1727792133184,1.1145,2584.0,2583.5,3.87063]
[1727792133349,1.1145,2584.0,2583.7,3.87041]
[1727792133551,1.1145,2584.0,2583.5,3.87063]
[1727792134095,4.9845,2584.0,2583.5,3.87063]
[1727792134290,1.1145,2584.0,2583.5,3.87063]
[1727792134584,1.1453,2584.3,2583.5,3.87068]
[1727792134783,1.1453,2584.3,2583.4,3.0]
[1727792134954,1.1453,2584.3,2583.3,0.55]
[1727792134955,1.1453,2584.3,2584.1,3.8697]
[1727792135157,1.1527,2584.9,2584.2,3.94695015]
[1727792135367,1.1527,2584.9,2584.0,1.102]
[1727792135368,1.1527,2584.9,2584.6,3.86898]
[1727792135569,1.0759,2585.3,2584.1,1.1445]
[1727792135772,1.0759,2585.3,2585.0,3.86842]
[1727792136091,1.0759,2585.3,2585.2,3.86817]
[1727792136298,1.0759,2585.7,2585.5,3.86757]
[1727792136595,3.86708,2586.0,2585.3,0.06367351]
[1727792136759,3.86714,2585.9,2585.3,3.86792]
[1727792137159,3.86714,2585.9,2585.2,0.55]
[1727792137160,1.0735,2586.1,2585.5,3.86771]
[1727792137393,1.567521,2586.1,2585.7,3.86741]
[1727792137592,1.0735,2586.1,2585.7,3.86741]
[1727792137964,4.94043,2586.1,2585.5,3.86771]
[1727792138164,1.0735,2586.1,2585.5,3.86771]
[1727792138365,4.94039,2586.1,2585.5,3.86771]
[1727792138565,3.86702,2586.0,2585.4,3.86786]
[1727792138772,3.86739,2585.8,2585.2,3.86804]
[1727792138998,3.86739,2585.8,2585.1,3.86822]
[1727792139357,3.86767,2585.6,2584.9,3.86855]
[1727792139562,1.0824,2585.5,2585.1,3.86822]
[1727792139795,1.0824,2585.5,2585.2,3.86816]
[1727792140019,1.0824,2585.5,2584.9,3.86855]
[1727792140171,1.0824,2585.5,2584.9,7.73708]
[1727792140493,1.0824,2585.5,2585.1,3.86828]
[1727792140885,4.95014,2585.5,2584.9,3.86854]
[1727792141088,4.362904,2585.4,2584.9,3.86854]
[1727792141295,0.495014,2585.4,2584.9,7.73707]
[1727792141613,1.0824,2585.5,2585.0,0.07715634]
[1727792141902,1.0824,2585.5,2584.9,3.8685]
[1727792142106,1.0824,2585.5,2585.0,3.86844]
[1727792142410,4.95026,2585.5,2584.9,0.07717661]
[1727792142608,1.0824,2585.5,2585.0,7.73681]
[1727792142810,1.0824,2585.5,2585.0,3.86837]
[1727792143014,1.0824,2585.5,2585.2,3.86816]
[1727792143364,5.01039,2585.8,2585.2,3.86816]
[1727792143607,0.501039,2585.7,2585.2,3.86816]
[1727792143904,5.01039,2585.8,2585.3,3.86799]
[1727792144059,1.1431,2585.8,2585.4,3.86786]
[1727792144566,3.86687,2586.1,2585.5,3.94496333]
[1727792144766,1.1028,2586.1,2585.9,3.86703]
[1727792145020,4.96925,2586.4,2585.8,3.86723]
[1727792145190,5.86528608,2586.4,2585.8,3.86723]
[1727792145517,7.73347,2586.2,2585.7,3.86736]
[1727792145806,7.73347,2586.2,2585.6,3.86745]
[1727792145807,3.86669,2586.2,2585.6,3.86745]
[1727792146012,3.86669,2586.2,2585.6,3.94479518]
[1727792146300,3.86669,2586.2,2585.6,3.86745]
[1727792146501,7.73344,2586.2,2585.6,3.86745]
[1727792146801,3.86669,2586.2,2585.7,3.8674]
[1727792147165,10.36052086,2586.4,2585.7,3.8674]
[1727792147507,3.86704,2586.0,2585.4,3.86776]
[1727792147676,3.86713,2585.9,2585.4,3.86776]
[1727792147880,3.86713,2585.9,2585.2,3.86806]
[1727792147881,3.86735,2585.8,2585.3,3.868]
[1727792148082,3.86735,2585.8,2585.2,3.86806]
[1727792148283,3.86751,2585.7,2585.0,3.86836]
[1727792148591,3.86751,2585.7,2585.1,3.86822]
[1727792148771,3.86751,2585.7,2585.0,7.73674]
[1727792148772,3.86766,2585.6,2585.0,7.73674]
[1727792148974,1.1363,2585.4,2585.0,3.86836]
[1727792149505,1.1363,2585.4,2585.1,3.86824]
[1727792149707,1.1363,2585.4,2585.2,3.86813]
[1727792149999,1.1363,2585.4,2585.0,3.86843]
[1727792150369,1.1363,2585.4,2584.9,3.86852]
[1727792150563,5.00418,2585.4,2584.9,3.86852]
[1727792150896,1.1363,2585.4,2585.1,7.73647]
[1727792151101,1.1363,2585.4,2584.9,3.86854]
[1727792151276,1.1363,2585.4,2584.7,3.86882]
[1727792151277,3.86814,2585.3,2584.7,3.86882]
[1727792151481,3.86827,2585.2,2584.3,1.0759]
[1727792151677,7.73652,2585.2,2584.7,3.8689]
[1727792151882,3.86825,2585.2,2584.7,3.8689]
[1727792152102,3.86825,2585.2,2584.5,3.8691]
[1727792152612,3.86886,2584.8,2584.1,3.86974]
[1727792152829,7.73772,2584.8,2584.1,3.86974]
[1727792153107,7.73772,2584.8,2584.1,3.86972]
[1727792153108,3.86893,2584.7,2584.1,3.86972]
[1727792153268,3.86886,2584.8,2584.2,3.86957]
[1727792153804,3.86886,2584.8,2584.1,3.51258207]
[1727792153967,1.0506,2584.9,2584.5,3.86911]
[1727792154384,1.0506,2584.9,2584.7,3.86883]
[1727792154589,4.40653308,2585.2,2584.7,3.86887]
[1727792154590,1.50784308,2585.2,2584.7,3.86887]
[1727792154827,1.50784308,2585.2,2584.8,3.86876]
[1727792154995,0.9696,2585.2,2584.8,3.86876]
[1727792155197,0.9696,2585.2,2584.7,7.73767]
[1727792155397,4.83781,2585.2,2584.7,3.86777102]
[1727792155841,0.9696,2585.2,2584.8,3.86876]
[1727792155995,0.9696,2585.2,2584.9,3.86861]
[1727792156191,0.9696,2585.2,2585.0,3.86845]
[1727792156400,0.9696,2585.2,2584.9,3.86861]
[1727792156736,0.9696,2585.2,2584.9,3.86853]
[1727792156888,3.86657,2586.3,2584.7,3.86884]
[1727792156889,0.9624,2585.5,2585.0,0.07735254]
[1727792157085,0.9624,2585.8,2584.8,3.86873]
[1727792157329,0.9624,2585.8,2585.4,3.86775]
[1727792157535,0.9624,2585.8,2585.5,3.8677]
[1727792157689,0.943,2586.1,2585.5,0.07734453]
[1727792157889,1.48682048,2586.1,2585.7,3.8673]
[1727792158201,0.943,2586.1,2585.7,3.8673]
[1727792158413,0.943,2586.1,2585.9,3.86711]
[1727792158623,0.943,2586.1,2585.7,3.86733]
[1727792158806,0.943,2586.1,2585.5,3.86762]
[1727792159124,0.943,2586.1,2585.8,3.86713]
[1727792159428,0.943,2586.1,2585.2,0.9747]
[1727792159626,0.943,2586.1,2585.7,7.73467]
[1727792159792,0.943,2586.1,2585.7,7.73466]
[1727792159995,0.943,2586.1,2585.7,3.86733]
[1727792160234,0.943,2586.1,2585.5,3.86763]
[1727792160735,3.86714,2585.9,2585.3,3.86792]
[1727792161025,3.86751,2585.7,2585.1,3.86823]
[1727792161231,8.36241478,2585.9,2584.9,0.9583]
[1727792161232,3.86721,2585.9,2585.2,3.86817]
[1727792161400,0.386721,2585.8,2585.3,3.86793]
[1727792161907,1.48682048,2586.1,2585.5,3.86771]
[1727792162107,1.48682048,2586.1,2585.3,3.86787]
[1727792162108,3.86697,2586.0,2585.3,3.86787]
[1727792162306,0.943,2586.1,2585.6,3.86746]
[1727792162506,0.943,2586.1,2585.4,0.07734631]
[1727792162507,0.943,2586.1,2585.5,0.55]
[1727792162706,0.1248108,2586.5,2585.8,0.55]
[1727792163041,0.1248108,2586.5,2586.0,3.86689]
[1727792163208,0.1248108,2586.5,2585.8,0.55]
[1727792163209,0.1248108,2586.5,2586.1,3.86672]
[1727792163393,0.1248108,2586.5,2586.3,3.86652]
[1727792163595,0.1248108,2586.5,2586.0,3.86696]
[1727792163797,3.9911208,2586.5,2585.8,3.86716]
[1727792164035,0.1248108,2586.5,2586.2,3.86659]
[1727792164250,0.1248108,2586.5,2586.3,3.94377418]
[1727792164428,0.1248108,2586.5,2586.4,3.86637]
[1727792164747,0.1248108,2586.5,2586.4,4.49368297]
[1727792165344,0.1248108,2586.5,2586.1,3.86674]
[1727792165520,0.1248108,2586.5,2585.9,0.9386]
[1727792165521,0.1248108,2586.5,2586.4,3.86637]
[1727792165722,0.1248108,2586.5,2586.3,7.73304]
[1727792165901,0.1248108,2586.5,2586.4,3.86637]
[1727792166324,0.1248108,2586.5,2586.3,3.86652]
[1727792166325,0.1248108,2586.5,2586.3,3.86651]
[1727792167134,0.1248108,2586.5,2586.4,3.86637]
[1727792167439,1.1112108,2586.5,2585.9,0.9386]
[1727792167595,1.1112108,2586.5,2586.1,3.86674]
[1727792167798,0.1248108,2586.5,2586.0,4.41686]
[1727792168001,0.1248108,2586.5,2586.1,3.86673]
[1727792168197,0.1248108,2586.5,2586.1,3.86671]
[1727792168448,0.1248108,2586.5,2586.4,3.86637]
[1727792169101,0.1248108,2586.5,2586.4,10.34327]
[1727792169542,0.1248108,2586.5,2586.4,8.34327]
[1727792170558,0.1248108,2586.5,2586.4,5.34327]
[1727792171669,0.1248108,2586.5,2586.4,8.34327]
[1727792171998,0.1248108,2586.5,2586.4,11.83357]
[1727792172308,0.1248108,2586.5,2586.4,12.22147]
[1727792173099,0.1248108,2586.5,2586.4,8.34327]
[1727792173297,0.1248108,2586.5,2586.4,5.34327]
[1727792173484,0.1248108,2586.5,2586.4,4.79327]
[1727792173690,0.1248108,2586.5,2586.4,3.86637]
[1727792174463,1.0194,2586.4,2585.6,3.86752]
[1727792174704,1.0194,2586.4,2586.0,3.86688]
[1727792174872,1.52043008,2586.4,2585.8,3.86718]
[1727792175071,1.0194,2586.4,2585.4,5.2524]
[1727792175274,1.0194,2586.4,2586.0,3.86687]
[1727792175612,1.0194,2586.4,2586.0,3.8669]
[1727792175908,3.8666,2586.3,2585.7,3.86736]
[1727792176207,3.86699,2586.0,2585.5,3.86761]
[1727792176411,0.386699,2585.9,2585.3,7.73584]
[1727792176579,0.386699,2585.9,2585.5,3.86759]
[1727792176778,0.386699,2585.9,2585.5,7.73522]
[1727792176980,0.386699,2585.9,2585.1,0.9576]
[1727792177195,1.01,2586.2,2585.6,3.86747]
[1727792177401,1.01,2586.2,2585.1,0.9576]
[1727792177402,4.8768,2586.2,2585.1,0.9576]
[1727792177585,4.8768,2586.2,2585.5,3.86758]
[1727792177784,4.87677,2586.2,2585.6,3.86746]
[1727792178007,0.487677,2586.1,2585.6,7.73489]
[1727792178213,4.87677,2586.2,2585.1,4.82585]
[1727792178214,1.01,2586.2,2585.7,3.8673]
[1727792178395,1.01,2586.2,2585.2,3.0]
[1727792178396,1.01,2586.2,2585.9,7.73402]
[1727792178712,0.1248108,2586.5,2586.2,3.86665]
[1727792178921,3.86646,2586.4,2585.8,3.86722]
[1727792179417,3.86653,2586.3,2585.8,3.86722]
[1727792179624,0.1248108,2586.5,2585.6,3.86753]
[1727792179625,5.651759,2586.2,2585.6,3.86747]
[1727792179806,3.86712,2585.9,2585.2,3.86807]
[1727792180009,1.0117,2586.2,2584.8,4.80094]
[1727792180010,0.9367,2585.8,2584.8,4.80094]
[1727792180171,0.9367,2585.8,2584.9,3.86847]
[1727792180374,0.9367,2585.8,2584.5,1.3201]
[1727792180592,4.347891,2585.7,2585.1,3.86824]
[1727792180824,4.347891,2585.7,2585.2,3.86814]
[1727792181396,0.480391,2585.7,2585.3,3.86799]
[1727792181727,0.480391,2585.7,2585.3,3.86791]
[1727792181926,0.480391,2585.7,2584.9,0.55]
[1727792182126,0.480391,2585.7,2585.3,3.86793]
[1727792182927,0.5284461,2585.6,2585.1,3.86824]
[1727792183138,0.5284461,2585.6,2585.1,7.73646]
[1727792183351,0.5284461,2585.6,2585.1,3.86822]
[1727792183508,0.5284461,2585.6,2585.2,3.86807]
[1727792183703,0.5284461,2585.6,2585.3,3.86801]
[1727792183904,0.5284461,2585.6,2584.8,3.86874]
[1727792183905,0.9363,2586.1,2585.7,3.86742]
[1727792184105,0.9363,2586.1,2585.9,3.86711]
[1727792184307,0.9363,2586.1,2585.7,7.73465]
[1727792184543,0.9363,2586.1,2585.8,3.86726]
[1727792184701,0.9363,2586.1,2585.7,3.86732]
[1727792184906,0.8617,2586.0,2585.3,3.86793]
[1727792185154,4.72876,2586.0,2585.3,3.86793]
[1727792185441,4.72876,2586.0,2585.3,3.86788]
[1727792185442,3.86735,2585.8,2585.3,3.86788]
[1727792187826,0.8941,2585.5,2585.4,3.86787]
[1727792188034,0.8941,2585.5,2585.3,3.868]
[1727792188548,0.8941,2585.5,2585.3,3.86801]
[1727792188864,0.8941,2585.5,2585.3,3.868]
[1727792189164,0.8941,2585.5,2585.1,7.73644]
[1727792189321,0.8941,2585.5,2585.3,3.86793]
[1727792189518,0.8941,2585.5,2585.2,3.86816]
[1727792189960,0.8941,2585.5,2585.3,3.86802]
[1727792190160,0.8941,2585.5,2585.4,3.86787]
[1727792190366,0.9281,2586.3,2585.8,3.86726]
[1727792190521,0.47946,2586.2,2586.1,3.86682]
[1727792190721,0.47946,2586.2,2586.0,3.86695]
[1727792190722,0.9281,2586.3,2586.0,3.86695]
[1727792190933,0.1248108,2586.5,2586.2,3.86667]
[1727792191164,0.1248108,2586.5,2586.3,3.86643]
[1727792191333,0.1248108,2586.5,2586.2,3.86664]
[1727792191537,0.1248108,2586.5,2586.2,3.8666]
[1727792191742,0.1248108,2586.5,2586.0,3.86684]
[1727792192054,0.1248108,2586.5,2585.9,3.86712]
[1727792192055,3.9910508,2586.5,2585.9,3.86712]
[1727792192224,3.9910508,2586.5,2585.9,0.05928546]
[1727792192225,0.1248108,2586.5,2585.9,0.05928546]
[1727792192563,0.1248108,2586.5,2586.2,3.86653]
[1727792192951,3.86668,2586.2,2585.7,3.86739]
[1727792193157,0.877,2586.1,2585.8,3.8672]
[1727792193464,0.877,2586.1,2585.7,3.86739]
[1727792193673,0.877,2586.1,2585.7,3.86733]
[1727792193965,0.9023,2586.4,2586.1,3.86678]
[1727792194137,0.9023,2586.4,2586.1,3.86674]
[1727792194460,0.9023,2586.4,2585.4,4.79331]
[1727792194461,0.9023,2586.4,2586.0,3.86694]
[1727792194669,0.9023,2586.4,2585.5,3.86768]
[1727792194670,5.25808008,2586.4,2585.9,3.86711]
[1727792194823,1.39164008,2586.4,2585.5,0.55]
[1727792195028,5.25812008,2586.4,2585.9,3.86709]
[1727792195255,1.39164008,2586.4,2586.0,3.86696]
[1727792195585,0.9023,2586.4,2586.2,3.8666]
[1727792195749,0.9023,2586.4,2585.7,3.86731]
[1727792195954,0.1248108,2586.5,2586.3,3.86652]
[1727792196163,3.9910408,2586.5,2586.0,3.86697]
[1727792196488,3.9910408,2586.5,2586.0,0.07733227]
[1727792196489,0.1248108,2586.5,2586.0,0.07733227]
[1727792196636,0.1248108,2586.5,2586.1,3.8668]
[1727792196837,0.1248108,2586.5,2586.0,0.07733119]
[1727792197085,3.9911208,2586.5,2585.9,3.867]
[1727792197379,0.1248108,2586.5,2585.9,3.867]
[1727792197581,0.1248108,2586.5,2586.1,3.86681]
[1727792197768,3.9910508,2586.5,2586.0,3.86696]
[1727792198087,3.86647,2586.4,2585.8,7.73437]
[1727792198255,4.75201,2586.3,2585.8,3.86726]
[1727792198667,4.75201,2586.3,2585.8,3.86719]
[1727792198845,0.8854,2586.3,2585.8,3.86715]
[1727792199049,0.8854,2586.3,2586.1,3.8668]
[1727792199243,0.8854,2586.3,2585.9,0.07732986]
[1727792199244,0.8854,2586.3,2586.0,3.86689]
[1727792199457,0.8854,2586.3,2586.1,3.8668]
[1727792199991,0.8854,2586.3,2586.1,3.86671]
[1727792200139,0.8854,2586.3,2586.0,3.86695]
[1727792200692,0.8854,2586.3,2585.5,4.41767]
[1727792200693,1.37304408,2586.3,2585.7,3.8673]
[1727792200858,1.37304408,2586.3,2585.8,3.86718]
[1727792200859,5.23964408,2586.3,2585.8,3.86718]
[1727792201050,9.10627408,2586.3,2585.8,3.86718]
[1727792201249,9.10627408,2586.3,2585.6,3.86745]
[1727792201250,3.86674,2586.2,2585.6,3.86745]
[1727792201444,5.23957408,2586.3,2585.6,3.86745]
[1727792201642,5.23957408,2586.3,2585.7,3.86734]
[1727792201643,0.8366606,2586.2,2585.7,3.86734]
[1727792201867,4.75193,2586.3,2585.8,3.86723]
[1727792202274,0.8854,2586.3,2586.0,3.86685]
[1727792202454,0.8854,2586.3,2586.1,3.86669]
[1727792202654,0.8854,2586.3,2586.0,7.73375]
[1727792202886,0.8854,2586.3,2586.0,3.86685]
[1727792203107,0.31270766,2586.2,2586.1,3.86675]
[1727792203301,0.8854,2586.3,2586.0,3.86685]
[1727792203660,0.8854,2586.3,2585.6,0.879]
[1727792203661,0.1248108,2586.5,2586.2,3.86666]
[1727792204092,0.1248108,2586.5,2586.2,0.07240322]
[1727792204304,0.1248108,2586.5,2586.1,3.86672]
[1727792204494,4.49007286,2586.4,2586.1,3.86672]
[1727792204675,4.49007286,2586.4,2585.9,3.86702]
[1727792204676,4.80305353,2586.4,2585.9,3.86702]
[1727792204996,4.49007286,2586.1,2585.7,3.86731]
[1727792205197,4.49007286,2586.1,2585.7,3.86737]
[1727792205369,9.20521286,2586.1,2585.5,3.86761]
[1727792205574,9.20521286,2586.1,2585.3,4.8033]
[1727792205575,4.49007286,2585.8,2585.3,4.8033]
[1727792205765,4.49007286,2585.8,2585.3,7.73582]
[1727792205968,8.35745286,2585.8,2585.2,3.86808]
[1727792206187,4.79612,2585.7,2585.2,3.86808]
[1727792206507,4.79612,2585.7,2584.7,0.8552]
[1727792206508,0.9286,2585.7,2584.7,0.8552]
[1727792206716,4.49007286,2585.5,2585.0,3.86835]
[1727792207008,4.49007286,2585.5,2585.2,3.86817]
[1727792207423,0.9286,2585.7,2585.3,3.86798]
[1727792207710,4.79611,2585.7,2585.2,3.86816]
[1727792207896,6.19503782,2585.7,2585.2,3.86816]
[1727792208274,0.31287418,2585.6,2585.3,3.8679]
[1727792208477,2.32752782,2585.7,2585.3,3.8679]
[1727792208804,0.9286,2585.7,2584.7,0.95979958]
[1727792209000,0.9286,2585.7,2585.4,3.86781]
[1727792209870,3.86765,2585.6,2585.1,3.86819]
[1727792210065,4.49007286,2585.5,2585.1,3.86819]
[1727792210678,4.79614,2585.7,2585.2,3.86817]
[1727792210679,3.86758,2585.6,2585.2,3.86817]
[1727792210919,0.9286,2585.7,2585.3,3.86794]
[1727792211216,0.9286,2585.7,2584.8,0.55]
[1727792211505,0.9286,2585.7,2585.4,3.86785]
[1727792211920,0.9286,2585.7,2585.4,7.73565]
[1727792212067,0.9111,2586.0,2585.4,3.86776]
[1727792212270,0.9111,2586.0,2585.0,3.86843]
[1727792212271,0.31274235,2585.9,2584.9,3.0]
[1727792212528,3.86721,2585.9,2585.5,3.8677]
[1727792212676,4.49007286,2585.8,2585.4,3.86786]
[1727792212876,4.49007286,2585.8,2585.3,3.86788]
[1727792212877,4.49007286,2585.8,2585.5,3.86769]
[1727792213220,4.49007286,2585.8,2585.4,3.86786]
[1727792213376,3.86744,2585.7,2585.2,3.86806]
[1727792213571,3.8675,2585.7,2585.2,3.86815]
[1727792213799,4.79594111,2585.7,2585.2,3.86815]
[1727792213997,4.79586111,2585.7,2585.3,3.86795]
[1727792214572,4.79586111,2585.7,2585.2,3.8681]
[1727792214783,4.80283,2585.6,2584.9,3.86857]
[1727792215004,4.80283,2585.6,2585.0,3.86836]
[1727792215005,3.86783,2585.5,2585.0,3.86836]
[1727792215212,4.82772811,2585.5,2585.0,7.73674]
[1727792215414,4.82772811,2585.5,2585.0,3.86836]
[1727792215712,4.82772811,2585.5,2584.8,3.86868]
[1727792215713,4.49007286,2585.3,2584.9,3.86861]
[1727792215914,4.75768,2585.4,2584.8,3.86868]
[1727792216072,4.76336,2585.0,2584.5,3.86921]
[1727792216283,3.86878,2584.8,2584.3,3.8695]
[1727792216580,0.86317,2584.9,2584.5,3.86911]
[1727792217168,0.8948,2585.0,2584.5,3.86921]
[1727792217576,4.76334,2585.0,2584.5,3.86921]
[1727792217873,4.76334,2585.0,2584.1,0.9167]
[1727792217874,3.86887,2584.8,2584.2,3.86966]
[1727792218084,3.86887,2584.8,2584.1,3.86972]
[1727792218085,0.8805,2584.5,2584.1,3.86972]
[1727792218285,0.8805,2584.5,2583.9,3.87003]
[1727792218286,4.74973,2584.5,2583.9,3.87001]
[1727792218507,4.74973,2584.5,2584.0,3.86987]
[1727792218508,1.742381,2584.5,2584.0,3.86987]
[1727792218865,1.742381,2584.5,2583.9,3.87001]
[1727792219116,5.611601,2584.5,2583.9,3.86999]
[1727792219281,1.742381,2584.5,2583.9,3.86999]
[1727792219482,5.611601,2584.5,2583.9,7.73996]
[1727792219676,0.5611601,2584.4,2583.9,3.86997]
[1727792219928,0.5611601,2584.4,2583.7,3.87031]
[1727792219929,4.18227836,2584.3,2583.8,3.87023]
[1727792220091,4.18227836,2584.3,2583.5,0.9137]
[1727792220092,0.5611601,2584.4,2583.5,0.9137]
[1727792220324,0.5611601,2584.4,2583.8,3.87023]
[1727792220325,3.86953,2584.3,2583.8,3.87023]
[1727792220532,3.86953,2584.3,2583.5,0.9137]
[1727792220533,3.86953,2584.3,2583.6,3.87046]
[1727792220697,0.44306901,2584.2,2583.6,3.87046]
[1727792220887,0.5611601,2584.4,2583.7,0.07739799]
[1727792221225,3.8694,2584.4,2583.8,3.87014]
[1727792221544,3.8694,2584.4,2583.0,6.87797286]
[1727792221545,3.87004,2584.0,2583.3,3.87091]
[1727792221880,3.87073,2583.5,2583.0,3.87145]
[1727792221999,3.87092,2583.4,2582.7,3.87181]
[1727792222200,4.1832672,2583.4,2582.7,3.87181]
[1727792222499,4.74013,2583.5,2582.9,3.87152]
[1727792222702,3.87087,2583.4,2582.7,3.87182]
[1727792222898,3.87087,2583.4,2582.8,3.87173]
[1727792223089,3.87087,2583.4,2582.7,3.87181]
[1727792223442,3.87087,2583.4,2582.3,3.87248]
[1727792223443,3.87088,2583.4,2582.8,3.87162]
[1727792223624,2.17947029,2583.5,2582.6,3.872]
[1727792223822,5.35947286,2583.5,2582.7,3.87183]
[1727792224128,3.87094,2583.4,2582.9,3.87161]
[1727792224630,0.8694,2583.5,2582.9,3.87153]
[1727792224631,4.74011,2583.5,2582.9,3.87153]
[1727792224835,4.74012,2583.5,2583.0,3.87132]
[1727792225045,0.8694,2583.5,2582.8,0.07742385]
[1727792225193,0.8694,2583.5,2583.2,3.87108]
[1727792225393,3.86976,2584.2,2583.4,3.87086]
[1727792225617,2.36482511,2585.2,2584.0,3.86984]
[1727792225618,0.9067,2584.5,2584.0,3.86984]
[1727792225936,0.9067,2584.5,2583.9,3.87011]
[1727792225937,3.86938,2584.4,2583.9,3.87011]
[1727792226140,0.9067,2584.5,2583.9,3.87002]
[1727792226459,0.9067,2584.5,2584.0,7.73978]
[1727792226613,0.9067,2584.5,2584.0,3.86986]
[1727792227146,0.9067,2584.5,2584.1,3.86981]
[1727792227466,3.87029,2583.8,2583.2,4.42104]
[1727792227673,3.87028,2583.8,2583.0,3.8714]
[1727792227849,3.0,2584.6,2582.8,4.72638]
[1727792227850,3.87065,2583.6,2582.8,4.72638]
[1727792228158,0.8701,2583.7,2582.8,3.87168]
[1727792228159,3.8709,2583.4,2582.8,3.87168]
[1727792228315,3.8709,2583.4,2582.6,3.87198]
[1727792228316,3.87111,2583.3,2582.7,3.87189]
[1727792228509,4.77138,2583.2,2582.6,3.87198]
[1727792228765,0.9002,2583.2,2582.7,3.8719]
[1727792229255,4.77136,2583.2,2582.6,3.87198]
[1727792229410,0.9002,2583.2,2582.7,3.87186]
[1727792229614,4.77138,2583.2,2582.6,3.87198]
[1727792229839,3.87134,2583.1,2582.6,3.87197]
[1727792230158,3.87134,2583.1,2582.5,3.87221]
[1727792230447,3.87134,2583.1,2582.0,3.87288]
[1727792230448,0.9153,2583.1,2582.0,3.87288]
[1727792230664,0.902958,2583.2,2581.9,3.87311]
[1727792230665,3.87215,2582.6,2581.9,3.87311]
[1727792230811,4.78755,2582.5,2581.9,3.87302]
[1727792231011,4.78755,2582.5,2581.9,3.87301]
[1727792231245,3.87273,2582.2,2581.5,7.74732]
[1727792231562,1.637133,2582.1,2581.3,3.87389]
[1727792231857,0.8626,2582.1,2581.9,3.87309]
[1727792232320,0.8626,2582.1,2581.7,3.87331]
[1727792232713,0.8626,2582.1,2581.8,3.87324]
[1727792233148,0.8626,2582.1,2581.8,3.87325]
[1727792233347,0.8626,2582.1,2581.9,3.87308]
[1727792233693,6.87154,2583.0,2581.9,3.87308]
[1727792233694,0.8977,2582.4,2581.9,3.8731]
[1727792234049,0.8977,2582.4,2582.0,3.87285]
[1727792234349,0.8977,2582.4,2581.9,3.8731]
[1727792234880,3.87252,2582.3,2581.7,3.87333]
[1727792235073,7.6487618,2583.1,2581.3,3.87395]
[1727792235074,3.87283,2582.1,2581.3,3.87395]
[1727792235246,3.87283,2582.1,2581.3,3.87391]
[1727792235247,0.8676,2582.1,2581.3,3.87391]
[1727792235580,0.8676,2582.1,2581.5,3.8736]
[1727792235770,0.8676,2582.1,2581.7,3.87331]
[1727792235944,0.8676,2582.1,2581.6,3.87352]
[1727792236146,1.3893202,2582.1,2581.3,3.87391]
[1727792236343,1.3893202,2582.1,2581.0,4.74972]
[1727792236344,4.74046,2582.1,2581.0,4.74972]
[1727792236548,4.74046,2582.1,2581.9,3.87311]
[1727792236549,0.8676,2582.1,2581.9,3.87311]
[1727792236747,3.87073,2583.5,2582.1,3.87281]
[1727792236748,0.9329,2582.4,2582.1,3.87281]
[1727792236987,0.9329,2582.4,2581.9,3.87311]
[1727792236988,0.9329,2583.0,2582.2,0.07745332]
[1727792237293,0.9329,2583.0,2582.5,3.87211]
[1727792237642,0.9196,2583.4,2583.0,3.87132]